bitfinex-derivatives/quotes_BTCF0:USTF0_20210703
["timestamp","ask_amount","ask_price","bid_price","bid_amount"]
[1625324043338,1.882,34624.0,34623.0,7.21401473]
[1625324043438,1.882,34624.0,34623.0,7.15501473]
[1625324043689,1.882,34624.0,34623.0,7.21401473]
[1625324044243,2.09522,34624.0,34623.0,6.84024473]
[1625324044390,2.09522,34624.0,34623.0,3.04145498]
[1625324044492,2.15422,34624.0,34623.0,3.04145498]
[1625324044643,3.11652176,34624.0,34623.0,3.04145498]
[1625324044795,3.13363879,34624.0,34623.0,0.09233217]
[1625324044991,3.19263879,34624.0,34623.0,0.09233217]
[1625324045191,3.19263879,34624.0,34623.0,0.08603217]
[1625324045295,4.52911908,34624.0,34620.0,0.42569859]
[1625324045593,0.01711931,34623.0,34620.0,0.42569859]
[1625324045692,0.07611931,34623.0,34620.0,0.42569859]
[1625324045844,1.33606414,34621.0,34618.0,0.42596381]
[1625324046091,1.45406414,34621.0,34618.0,0.42596381]
[1625324046195,0.118,34621.0,34618.0,0.42596381]
[1625324046342,0.118,34621.0,34619.0,0.08519396]
[1625324046494,0.24057544,34620.0,34619.0,0.08519396]
[1625324046596,1.69409733,34620.0,34618.0,0.0851942]
[1625324047744,1.33594055,34619.0,34617.0,0.42600119]
[1625324047848,1.45394055,34619.0,34617.0,0.42600119]
[1625324048399,0.118,34619.0,34617.0,0.08522439]
[1625324048496,0.24057544,34618.0,34617.0,0.08522439]
[1625324048597,0.35857544,34618.0,34617.0,0.08522439]
[1625324050000,0.35857544,34618.0,34616.0,0.42593299]
[1625324050549,0.24057544,34617.0,34616.0,0.42593299]
[1625324050650,0.58361544,34617.0,34616.0,0.42593299]
[1625324051701,0.58361544,34617.0,34616.0,0.08516711]
[1625324053556,0.58361544,34617.0,34615.0,0.08513521]
[1625324054056,0.58361544,34617.0,34614.0,0.08510441]
[1625324055612,0.35857544,34617.0,34614.0,0.08510441]
[1625324056215,0.08366959,34615.0,34612.0,0.24057544]
[1625324056314,0.14266959,34615.0,34612.0,0.24057544]
[1625324056464,0.20166959,34615.0,34612.0,0.24057544]
[1625324056615,0.24057544,34613.0,34612.0,0.24057544]
[1625324056715,0.29957544,34613.0,34612.0,0.24057544]
[1625324057265,0.24057544,34613.0,34612.0,0.24057544]
[1625324057467,0.24057544,34613.0,34612.0,0.35857544]
[1625324057567,0.24057544,34613.0,34612.0,0.29957544]
[1625324057817,0.24057544,34613.0,34612.0,0.36199917]
[1625324057921,0.24057544,34613.0,34612.0,0.30299917]
[1625324058020,0.24057544,34613.0,34612.0,1.72299219]
[1625324058222,0.24057544,34613.0,34612.0,1.66399219]
[1625324058569,0.24057544,34617.0,34612.0,3.19506142]
[1625324058718,0.24057544,34617.0,34612.0,3.47718142]
[1625324058818,0.24057544,34617.0,34612.0,3.41818142]
[1625324058919,0.24057544,34617.0,34612.0,3.47718142]
[1625324059019,0.24057544,34617.0,34615.0,1.36095009]
[1625324059169,0.24057544,34617.0,34615.0,1.41995009]
[1625324060419,0.24057544,34617.0,34616.0,0.00342366]
[1625324060621,0.41863447,34621.0,34616.0,0.54357454]
[1625324060722,0.47763447,34621.0,34616.0,0.54357454]
[1625324060975,0.47763447,34621.0,34616.0,0.54015088]
[1625324061877,0.41863447,34621.0,34616.0,0.54015088]
[1625324061977,0.47763447,34621.0,34616.0,0.54015088]
[1625324062078,0.47763447,34621.0,34617.0,0.00342364]
[1625324062178,0.47763447,34621.0,34617.0,0.06242364]
[1625324062478,0.14280856,34621.0,34617.0,0.06242364]
[1625324062579,0.14280856,34621.0,34620.0,0.24057544]
[1625324063129,0.08380856,34621.0,34620.0,0.24057544]
[1625324063430,0.08386519,34622.0,34620.0,0.24057544]
[1625324063528,0.14286519,34622.0,34620.0,0.24057544]
[1625324065485,0.08386519,34622.0,34620.0,0.24057544]
[1625324066385,0.08386519,34622.0,34621.0,0.00342356]
[1625324066535,0.14286519,34622.0,34621.0,0.00342356]
[1625324066835,0.08386519,34622.0,34621.0,0.00342356]
[1625324068387,0.14286519,34622.0,34621.0,0.00342356]
[1625324068638,0.47786517,34622.0,34621.0,0.00342356]
[1625324069440,0.39399998,34622.0,34621.0,0.34360502]
[1625324069893,0.059,34622.0,34621.0,0.08847216]
[1625324071144,0.059,34622.0,34621.0,0.00342356]
[1625324072549,0.059,34622.0,34621.0,0.08847918]
[1625324073401,2.12257544,34624.0,34621.0,0.08847918]
[1625324073503,2.18157544,34624.0,34621.0,0.08847918]
[1625324073603,2.18157544,34624.0,34622.0,0.00342362]
[1625324074705,2.18157544,34624.0,34623.0,0.24057544]
[1625324075458,4.35581729,34624.0,34623.0,0.24057544]
[1625324077312,3.18508454,34624.0,34623.0,0.24057544]
[1625324077861,4.35617494,34624.0,34623.0,0.24057544]
[1625324078768,4.35617494,34624.0,34623.0,0.24399893]
[1625324080522,4.29717494,34624.0,34623.0,0.24399893]
[1625324080672,3.12608454,34624.0,34623.0,0.32911189]
[1625324080769,3.18508454,34624.0,34623.0,0.32911189]
[1625324081020,3.12608454,34624.0,34623.0,0.32911189]
[1625324081121,3.18508454,34624.0,34623.0,0.32911189]
[1625324081221,3.12608454,34624.0,34623.0,0.32911189]
[1625324081320,3.18508454,34624.0,34623.0,0.32911189]
[1625324081520,3.18508454,34624.0,34623.0,0.58447481]
[1625324082022,2.18157544,34624.0,34623.0,0.58447481]
[1625324082122,2.18157544,34624.0,34623.0,0.24399893]
[1625324083025,3.18620418,34624.0,34623.0,0.58450876]
[1625324084525,3.18620418,34624.0,34623.0,0.24399893]
[1625324085681,2.88662874,34624.0,34623.0,0.24399893]
[1625324086178,1.96593074,34624.0,34623.0,2.45784506]
[1625324087030,1.882,34624.0,34623.0,2.45784506]
[1625324089483,1.941,34624.0,34623.0,2.45784506]
[1625324089583,2.0,34624.0,34623.0,2.45784506]
[1625324089684,2.08396702,34624.0,34623.0,2.45784506]
[1625324090234,3.00492652,34624.0,34623.0,0.24399893]
[1625324092237,4.17718348,34624.0,34623.0,0.58474707]
[1625324092987,4.17718348,34624.0,34623.0,0.66993442]
[1625324094144,4.11818348,34624.0,34623.0,0.66993442]
[1625324094246,4.11818348,34624.0,34623.0,0.88818628]
[1625324094247,2.11688348,34624.0,34623.0,0.88818628]
[1625324094343,2.11688348,34624.0,34623.0,0.94718628]
[1625324094957,0.41999115,34628.0,34623.0,4.43982734]
[1625324095144,0.36319115,34628.0,34623.0,4.43982734]
[1625324095396,0.36319115,34628.0,34624.0,0.00342245]
[1625324095495,0.36319115,34628.0,34624.0,0.31172245]
[1625324095596,0.36319115,34628.0,34625.0,0.5]
[1625324095698,0.08424372,34634.0,34627.0,4.08838509]
[1625324095797,0.08424372,34634.0,34627.0,4.20638509]
[1625324096100,4.372e-05,34634.0,34628.0,0.0034218]
[1625324096250,0.08422585,34637.0,34633.0,2.55322299]
[1625324096450,0.08422585,34637.0,34633.0,2.84613299]
[1625324096550,0.08422585,34637.0,34633.0,2.90513299]
[1625324096751,0.08422585,34637.0,34636.0,0.72172632]
[1625324096954,1.17725655,34643.0,34636.0,1.91318988]
[1625324097052,1.17725655,34643.0,34636.0,1.97218988]
[1625324097152,1.23625655,34643.0,34636.0,1.97218988]
[1625324097655,1.23625655,34643.0,34637.0,0.00342179]
[1625324097856,1.17658649,34642.0,34637.0,0.06242179]
[1625324097957,1.17658649,34642.0,34637.0,0.059]
[1625324098056,1.23558649,34642.0,34637.0,0.059]
[1625324098407,1.17541034,34641.0,34637.0,0.059]
[1625324098607,1.23441034,34641.0,34637.0,0.059]
[1625324098756,1.23441034,34641.0,34640.0,0.24057544]
[1625324098858,1.23441034,34641.0,34640.0,0.29957544]
[1625324099308,1.23441034,34641.0,34640.0,0.24057544]
[1625324099558,1.23441034,34641.0,34640.0,0.29957544]
[1625324099658,1.23441034,34641.0,34640.0,0.24057544]
[1625324100408,1.23441034,34641.0,34640.0,0.29957544]
[1625324100509,1.23441034,34641.0,34640.0,0.24057544]
[1625324103714,0.059,34641.0,34640.0,0.24057544]
[1625324104715,0.72995843,34641.0,34640.0,0.24057544]
[1625324106670,0.72995843,34641.0,34640.0,0.29957544]
[1625324106767,0.72995843,34641.0,34640.0,0.24057544]
[1625324106869,1.90388666,34641.0,34640.0,0.24057544]
[1625324107571,0.72995843,34641.0,34640.0,0.24057544]
[1625324107720,0.93637843,34641.0,34640.0,0.24057544]
[1625324108176,2.11055564,34641.0,34640.0,0.24057544]
[1625324108675,0.93637843,34641.0,34640.0,0.24057544]
[1625324109078,2.110221,34641.0,34640.0,0.24057544]
[1625324112887,3.4512684,34641.0,34640.0,0.24057544]
[1625324119005,3.69184384,34641.0,34640.0,0.24057544]
[1625324121108,3.70895452,34641.0,34640.0,0.24057544]
[1625324121360,2.36790712,34641.0,34640.0,0.24057544]
[1625324121960,2.35079644,34641.0,34640.0,0.24057544]
[1625324122611,2.35079644,34641.0,34640.0,0.29957544]
[1625324122714,2.35079644,34641.0,34640.0,0.24057544]
[1625324122964,2.36790695,34641.0,34640.0,0.24399754]
[1625324123064,2.36790695,34641.0,34640.0,0.30299754]
[1625324123364,2.36790695,34641.0,34640.0,0.24399754]
[1625324123464,2.36790695,34641.0,34640.0,0.30299754]
[1625324123564,2.36790695,34641.0,34640.0,0.24399754]
[1625324123766,2.36790695,34641.0,34640.0,0.30299754]
[1625324123865,2.36790695,34641.0,34640.0,0.24399754]
[1625324124065,2.36790695,34641.0,34640.0,0.30299754]
[1625324124214,2.36790695,34641.0,34640.0,0.24399754]
[1625324125069,3.37592908,34641.0,34640.0,0.24399754]
[1625324134692,3.88120738,34641.0,34640.0,0.24399754]
[1625324136097,5.22833554,34641.0,34640.0,0.24399754]
[1625324138902,5.16933554,34641.0,34640.0,0.24399754]
[1625324139203,3.82220738,34641.0,34640.0,0.24399754]
[1625324139804,3.88120738,34641.0,34640.0,0.24399754]
[1625324143512,5.22787893,34641.0,34640.0,0.24399754]
[1625324146469,5.22787893,34641.0,34640.0,0.0034221]
[1625324146769,5.28687893,34641.0,34640.0,0.0034221]
[1625324146870,5.28687893,34641.0,34639.0,0.00342229]
[1625324147070,5.28687893,34641.0,34640.0,0.00342229]
[1625324147169,6.8017989,34641.0,34640.0,0.00342229]
[1625324147430,6.8017989,34641.0,34639.0,0.00342236]
[1625324147619,0.01711189,34640.0,34637.0,0.00342238]
[1625324147721,0.13511189,34640.0,34637.0,0.00342238]
[1625324148121,4.7132779,34638.0,34637.0,0.00342238]
[1625324148269,4.7722779,34638.0,34637.0,0.00342238]
[1625324148519,4.78939012,34638.0,34637.0,0.00342238]
[1625324149220,5.02996556,34638.0,34637.0,0.00342238]
[1625324152129,6.5451071,34638.0,34637.0,0.00342238]
[1625324153483,6.5451071,34638.0,34636.0,0.24057544]
[1625324153833,6.23441358,34637.0,34636.0,0.75320257]
[1625324153932,6.29341358,34637.0,34636.0,0.75320257]
[1625324154033,6.31052598,34637.0,34636.0,0.75320257]
[1625324154283,6.31052598,34637.0,34636.0,0.75662505]
[1625324155935,6.31052598,34637.0,34636.0,0.75320257]
[1625324156838,6.31052598,34637.0,34636.0,0.24057544]
[1625324157338,6.31052598,34637.0,34636.0,0.75315097]
[1625324157538,6.31052598,34637.0,34636.0,0.75657342]
[1625324157788,6.31052598,34637.0,34636.0,1.43655117]
[1625324158292,6.31052598,34637.0,34636.0,0.75315097]
[1625324161447,6.60745598,34637.0,34636.0,0.75315097]
[1625324162849,6.54845598,34637.0,34636.0,0.75315097]
[1625324162999,6.25152598,34637.0,34636.0,0.75315097]
[1625324163201,6.25152598,34637.0,34636.0,1.43643422]
[1625324163301,6.23441358,34637.0,34636.0,1.43643422]
[1625324163552,6.25152513,34637.0,34636.0,1.43985653]
[1625324163706,4.73512356,34637.0,34636.0,2.46473518]
[1625324164603,4.71801201,34637.0,34636.0,2.46473518]
[1625324165154,4.71801201,34637.0,34636.0,3.66047027]
[1625324166855,4.77701201,34637.0,34636.0,3.66047027]
[1625324170965,4.79412263,34637.0,34636.0,3.66047027]
[1625324171718,4.77701201,34637.0,34636.0,3.66047027]
[1625324171967,4.79412282,34637.0,34636.0,3.66047027]
[1625324177627,4.79412282,34637.0,34636.0,2.46473518]
[1625324181184,4.79412282,34637.0,34636.0,3.66055218]
[1625324181688,4.79412282,34637.0,34636.0,2.46473518]
[1625324184742,4.79412282,34637.0,34636.0,3.66056693]
[1625324186144,4.79412282,34637.0,34636.0,2.46473518]
[1625324189605,5.08872282,34637.0,34636.0,2.46473518]
[1625324189805,6.60678857,34637.0,34636.0,1.43985653]
[1625324190404,6.60678857,34637.0,34636.0,0.51599784]
[1625324191555,6.60678857,34637.0,34636.0,0.17426833]
[1625324194363,6.60678857,34637.0,34636.0,0.00342231]
[1625324196164,6.60678857,34637.0,34635.0,0.41141104]
[1625324196564,6.66578857,34637.0,34635.0,0.41141104]
[1625324196665,0.01711313,34636.0,34635.0,0.41141104]
[1625324196764,0.07611313,34636.0,34635.0,0.41141104]
[1625324196864,0.13511313,34636.0,34635.0,0.41141104]
[1625324197068,2.66828835,34636.0,34635.0,0.41141104]
[1625324197165,6.38379212,34636.0,34634.0,0.17082697]
[1625324197418,0.49826478,34635.0,34634.0,0.17082697]
[1625324197515,0.61626478,34635.0,34634.0,0.17082697]
[1625324197616,6.8632574,34635.0,34633.0,0.17083416]
[1625324197966,6.8632574,34635.0,34631.0,0.68333663]
[1625324198071,0.01711438,34634.0,34629.0,1.19578881]
[1625324198167,0.07611438,34634.0,34629.0,1.19578881]
[1625324198267,0.13511438,34634.0,34629.0,1.19578881]
[1625324198371,6.37574151,34634.0,34630.0,0.17077556]
[1625324198671,0.07611512,34633.0,34630.0,0.17077556]
[1625324198769,0.13511512,34633.0,34630.0,0.17077556]
[1625324198872,4.04512221,34631.0,34622.0,1.25251355]
[1625324198970,4.10412221,34631.0,34622.0,1.19551355]
[1625324199070,4.16312221,34631.0,34622.0,1.19551355]
[1625324199220,0.01711512,34630.0,34623.0,0.00342303]
[1625324199370,1.88851397,34624.0,34623.0,1.19893284]
[1625324199769,3.0685588,34624.0,34623.0,1.19893284]
[1625324200421,3.0685588,34624.0,34623.0,0.00342303]
[1625324200422,3.1275588,34624.0,34623.0,0.00342303]
[1625324200520,3.0685588,34624.0,34623.0,0.00342303]
[1625324201622,3.0685588,34624.0,34622.0,0.00342301]
[1625324202372,0.54015088,34624.0,34623.0,1.19496994]
[1625324202879,0.54015088,34624.0,34623.0,1.1983929]
[1625324204329,0.54015088,34624.0,34623.0,0.00342296]
[1625324204729,0.54015088,34624.0,34622.0,0.00342296]
[1625324206282,0.54015088,34624.0,34622.0,1.36828737]
[1625324206583,0.54015088,34624.0,34623.0,0.00342289]
[1625324207185,0.54015088,34624.0,34623.0,0.06242289]
[1625324207287,0.54015088,34624.0,34623.0,0.00342289]
[1625324207438,0.54015088,34624.0,34623.0,1.36825137]
[1625324208039,0.54015088,34624.0,34623.0,0.00342289]
[1625324209090,0.54015088,34624.0,34623.0,0.06242289]
[1625324209592,0.54015088,34624.0,34623.0,0.00342289]
[1625324213355,0.48115088,34624.0,34623.0,0.00342289]
[1625324213456,0.24057544,34624.0,34623.0,0.27297289]
[1625324213658,0.24057544,34624.0,34623.0,1.63716123]
[1625324214109,0.24057544,34628.0,34623.0,1.63716123]
[1625324214213,1.34841699,34630.0,34623.0,1.69616123]
[1625324214560,1.34841699,34630.0,34624.0,0.00342214]
[1625324214664,1.34915821,34632.0,34624.0,0.12142214]
[1625324215361,1.34915821,34632.0,34625.0,0.00342202]
[1625324215463,1.8689,34636.0,34631.0,1.84516405]
[1625324215563,1.8689,34636.0,34631.0,2.09579405]
[1625324215713,1.8689,34636.0,34631.0,2.15479405]
[1625324215917,1.8689,34636.0,34632.0,0.00342202]
[1625324216013,1.8689,34636.0,34632.0,0.06242202]
[1625324216416,1.8689,34636.0,34633.0,0.00342206]
[1625324216514,1.8689,34636.0,34633.0,0.06242206]
[1625324216615,3.21985522,34636.0,34633.0,0.06242206]
[1625324217063,3.21985522,34636.0,34634.0,0.0624221]
[1625324217264,0.29957544,34635.0,34634.0,0.0624221]
[1625324218465,0.29957544,34635.0,34634.0,0.0034221]
[1625324218617,0.29957544,34635.0,34634.0,0.0624221]
[1625324219218,0.29957544,34635.0,34634.0,0.0034221]
[1625324219468,0.29957544,34635.0,34634.0,0.0624221]
[1625324219568,0.29957544,34635.0,34634.0,0.0034221]
[1625324219668,0.29957544,34635.0,34632.0,0.00342223]
[1625324219768,0.29957544,34635.0,34632.0,0.06242223]
[1625324219919,0.29957544,34635.0,34634.0,0.00342221]
[1625324220169,0.29957544,34635.0,34634.0,0.32993]
[1625324220420,0.29957544,34635.0,34634.0,0.33335215]
[1625324222724,1.49307842,34635.0,34634.0,0.33335215]
[1625324225579,1.43407842,34635.0,34634.0,0.33335215]
[1625324226883,1.43407842,34635.0,34634.0,1.52640034]
[1625324228488,2.45706447,34635.0,34634.0,2.54911913]
[1625324228637,2.21648903,34635.0,34634.0,2.54911913]
[1625324229191,1.02298605,34635.0,34634.0,2.54911913]
[1625324229540,1.02298605,34635.0,34634.0,2.78969457]
[1625324229788,2.89180784,34636.0,34634.0,4.15232875]
[1625324230041,2.89180784,34636.0,34635.0,0.00342179]
[1625324230140,2.89180784,34636.0,34635.0,0.06242179]
[1625324230239,2.89180784,34636.0,34635.0,2.27678147]
[1625324232948,2.97860784,34636.0,34635.0,2.27678147]
[1625324233049,2.89180784,34636.0,34635.0,2.27678147]
[1625324233198,4.08506974,34636.0,34635.0,1.08443395]
[1625324233999,4.17176974,34636.0,34635.0,1.08443395]
[1625324234100,4.17176974,34636.0,34635.0,1.17053395]
[1625324234201,4.08506974,34636.0,34635.0,1.08443395]
[1625324234305,2.89180784,34636.0,34635.0,2.27659549]
[1625324234502,2.89180784,34636.0,34635.0,2.33559549]
[1625324234806,1.93540784,34636.0,34635.0,2.33559549]
[1625324235103,0.9125,34636.0,34635.0,3.69634308]
[1625324235553,0.0001,34636.0,34635.0,3.69634308]
[1625324235805,1.36328932,34643.0,34635.0,3.69634308]
[1625324235806,0.3409376,34638.0,34635.0,3.69634308]
[1625324236154,0.3409376,34638.0,34636.0,0.00342141]
[1625324236253,0.3409376,34638.0,34636.0,0.06242141]
[1625324236354,0.3409376,34638.0,34636.0,0.12142141]
[1625324236605,0.3409376,34638.0,34637.0,3.57031846]
[1625324236705,0.3409376,34638.0,34637.0,3.57373993]
[1625324236806,0.3409376,34638.0,34637.0,3.63273993]
[1625324237559,0.3409376,34638.0,34637.0,3.87331537]
[1625324238508,0.34073979,34639.0,34637.0,3.87331537]
[1625324238810,0.34073979,34639.0,34638.0,0.00342144]
[1625324238961,1.02189208,34640.0,34638.0,2.27224659]
[1625324239360,1.02189208,34640.0,34639.0,0.00342144]
[1625324239461,1.02189208,34640.0,34639.0,1.02360724]
[1625324239661,1.02189208,34640.0,34639.0,1.26418268]
[1625324241467,0.24057544,34644.0,34639.0,0.24399688]
[1625324241666,0.24057544,34644.0,34643.0,0.24057544]
[1625324242217,0.25768381,34644.0,34643.0,0.24057544]
[1625324242567,3.83345044,34644.0,34643.0,0.24057544]
[1625324243477,3.83345044,34644.0,34643.0,0.49777544]
[1625324244369,3.83345044,34644.0,34643.0,0.50119706]
[1625324248476,2.47127795,34644.0,34643.0,0.50119706]
[1625324251429,2.47127795,34644.0,34643.0,0.56019706]
[1625324251832,2.45416958,34644.0,34643.0,0.56019706]
[1625324252832,2.4712772,34644.0,34643.0,0.56019706]
[1625324253385,2.45416958,34644.0,34643.0,0.56019706]
[1625324253835,1.26224737,34644.0,34643.0,0.56019706]
[1625324254936,1.5479148,34644.0,34643.0,0.30299706]
[1625324255037,1.5479148,34644.0,34643.0,0.24399706]
[1625324255839,2.73544506,34644.0,34643.0,0.24399706]
[1625324256840,2.67644506,34644.0,34643.0,0.24399706]
[1625324257041,0.46724287,34644.0,34643.0,0.24399706]
[1625324257140,0.31668287,34644.0,34643.0,0.24399706]
[1625324257343,2.52128154,34644.0,34643.0,0.24399706]
[1625324258246,4.55866129,34644.0,34643.0,0.24399706]
[1625324262103,4.49966129,34644.0,34643.0,0.24399706]
[1625324262305,4.55866129,34644.0,34643.0,0.24399706]
[1625324263157,4.55866129,34644.0,34643.0,0.30299706]
[1625324263307,4.55866129,34644.0,34643.0,0.24399706]
[1625324264210,4.55866129,34644.0,34643.0,0.30299706]
[1625324264859,4.55866129,34644.0,34643.0,0.24399706]
[1625324269417,4.76076129,34644.0,34643.0,0.24399706]
[1625324269618,4.81976129,34644.0,34643.0,0.24399706]
[1625324269718,5.06033673,34644.0,34643.0,0.24399706]
[1625324269819,6.59121097,34644.0,34643.0,0.24057544]
[1625324270572,8.29195652,34644.0,34643.0,0.24057544]
[1625324270873,8.32617718,34644.0,34643.0,0.24057544]
[1625324271874,8.29195652,34644.0,34643.0,0.24057544]
[1625324288465,8.80197527,34644.0,34643.0,0.24057544]
[1625324289410,8.74297527,34644.0,34643.0,0.54298544]
[1625324289512,8.54087527,34644.0,34643.0,0.54298544]
[1625324290066,8.59987527,34644.0,34643.0,0.54298544]
[1625324290314,6.89912972,34644.0,34643.0,0.54298544]
[1625324291467,6.84012972,34644.0,34643.0,0.54298544]
[1625324291867,6.59955428,34644.0,34643.0,0.54298544]
[1625324291968,6.59955428,34644.0,34643.0,0.6872601]
[1625324292369,6.59955428,34644.0,34643.0,0.94309177]
[1625324292922,6.59955428,34644.0,34643.0,0.88409177]
[1625324293272,6.59955428,34644.0,34643.0,0.62825953]
[1625324294924,6.59955428,34644.0,34643.0,0.96935597]
[1625324295226,6.59955428,34644.0,34643.0,0.62825953]
[1625324297883,6.59955428,34644.0,34643.0,0.68725953]
[1625324297984,6.59955428,34644.0,34643.0,0.62825953]
[1625324298085,6.59955428,34644.0,34643.0,0.63168103]
[1625324298184,6.59955428,34644.0,34643.0,0.97279787]
[1625324298735,6.59955428,34644.0,34643.0,0.88752378]
[1625324299136,6.59955428,34644.0,34643.0,0.94652378]
[1625324299237,6.59955428,34644.0,34643.0,0.88752378]
[1625324299386,6.59955428,34644.0,34643.0,0.94652378]
[1625324299487,6.59955428,34644.0,34643.0,0.88410228]
[1625324299587,6.59955428,34644.0,34643.0,0.94310228]
[1625324299688,6.59955428,34644.0,34643.0,0.88410228]
[1625324299837,6.59955428,34644.0,34643.0,0.94310228]
[1625324299937,6.59955428,34644.0,34643.0,0.88410228]
[1625324300139,6.59955428,34644.0,34643.0,0.94310228]
[1625324300238,6.59955428,34644.0,34643.0,0.88410228]
[1625324301393,6.59955428,34644.0,34643.0,0.94310228]
[1625324301542,6.59955428,34644.0,34643.0,0.88410228]
[1625324301794,6.59955428,34644.0,34643.0,0.94310228]
[1625324302045,6.59955428,34644.0,34643.0,0.88410228]
[1625324302645,6.59955428,34644.0,34643.0,0.94310228]
[1625324302796,6.59955428,34644.0,34643.0,0.88410228]
[1625324302896,6.59955428,34644.0,34643.0,0.94310228]
[1625324303046,6.59955428,34644.0,34643.0,0.88410228]
[1625324303145,6.59955428,34644.0,34643.0,0.94310228]
[1625324303246,6.59955428,34644.0,34643.0,0.88410228]
[1625324303450,6.59955428,34644.0,34643.0,0.94310228]
[1625324303547,6.59955428,34644.0,34643.0,0.88410228]
[1625324303649,6.59955428,34644.0,34643.0,0.94310228]
[1625324303799,6.59955428,34644.0,34643.0,0.88410228]
[1625324303949,6.59955428,34644.0,34643.0,0.94310228]
[1625324304049,6.59955428,34644.0,34643.0,0.88410228]
[1625324304250,6.59955428,34644.0,34643.0,0.94310228]
[1625324304550,6.59955428,34644.0,34643.0,0.88410228]
[1625324304752,6.59955428,34644.0,34643.0,0.94310228]
[1625324304852,6.59955428,34644.0,34643.0,0.88410228]
[1625324305154,6.59955428,34644.0,34643.0,0.94310228]
[1625324305253,6.59955428,34644.0,34643.0,0.88410228]
[1625324306157,6.59955428,34644.0,34643.0,0.94310228]
[1625324306405,6.59955428,34644.0,34643.0,0.88410228]
[1625324306507,6.59955428,34644.0,34643.0,0.94310228]
[1625324306658,6.59955428,34644.0,34643.0,0.88410228]
[1625324307906,6.59955428,34644.0,34643.0,0.62823901]
[1625324309410,6.59955428,34644.0,34643.0,0.54298544]
[1625324309560,6.59955428,34644.0,34643.0,0.24057544]
[1625324317335,6.59955428,34644.0,34643.0,0.24399709]
[1625324317886,6.59955428,34644.0,34643.0,0.24057544]
[1625324318087,6.65855428,34644.0,34643.0,0.24057544]
[1625324318187,6.59955428,34644.0,34643.0,0.24057544]
[1625324318336,6.65855428,34644.0,34643.0,0.24057544]
[1625324320243,6.59955428,34644.0,34643.0,0.24057544]
[1625324320441,6.59955428,34644.0,34643.0,0.24399724]
[1625324327302,6.59955428,34644.0,34643.0,0.3293301]
[1625324327401,6.59955428,34644.0,34643.0,0.3883301]
[1625324327505,6.54055428,34644.0,34643.0,0.3883301]
[1625324327604,6.29997884,34644.0,34643.0,0.3883301]
[1625324327904,6.28287141,34644.0,34643.0,0.3883301]
[1625324328004,4.40072824,34644.0,34643.0,1.4975794]
[1625324328307,3.00632824,34644.0,34643.0,1.4975794]
[1625324328504,1.18920192,34644.0,34643.0,1.4975794]
[1625324329004,0.42674108,34644.0,34643.0,3.02953824]
[1625324329255,0.08545055,34644.0,34643.0,3.02953824]
[1625324329406,0.35263186,34645.0,34643.0,3.02953824]
[1625324329504,0.35263186,34645.0,34643.0,3.52953824]
[1625324329805,0.34128134,34645.0,34644.0,0.00342068]
[1625324329904,0.34128134,34645.0,34644.0,0.06242068]
[1625324330454,0.6823891,34647.0,34644.0,2.27416766]
[1625324330554,0.6823891,34647.0,34645.0,0.5]
[1625324330655,0.6823891,34647.0,34645.0,0.559]
[1625324330755,0.6823891,34647.0,34645.0,0.56242059]
[1625324330905,0.68190394,34649.0,34646.0,0.67986407]
[1625324331006,0.68190394,34649.0,34646.0,0.68328466]
[1625324331106,0.68190394,34649.0,34646.0,0.74228466]
[1625324331257,0.68190394,34649.0,34647.0,0.00342054]
[1625324331407,0.68190394,34649.0,34648.0,0.67985624]
[1625324331506,0.68190394,34649.0,34648.0,0.73885624]
[1625324331863,0.68190394,34649.0,34648.0,0.74227685]
[1625324332116,0.68190394,34649.0,34648.0,1.22342773]
[1625324333316,0.68147528,34650.0,34648.0,1.22342773]
[1625324333541,0.74047528,34650.0,34648.0,1.22342773]
[1625324333718,0.74047528,34650.0,34649.0,0.00342056]
[1625324333819,0.74047528,34650.0,34649.0,0.06242056]
[1625324334020,0.059,34650.0,34649.0,0.74166806]
[1625324334723,0.74048538,34650.0,34649.0,0.74166806]
[1625324335272,0.74048538,34650.0,34649.0,0.7382475]
[1625324337133,0.74048538,34650.0,34649.0,0.74166806]
[1625324337287,0.059,34650.0,34649.0,0.74166806]
[1625324339237,0.059,34650.0,34649.0,0.7382475]
[1625324348662,0.059,34650.0,34649.0,1.92270322]
[1625324351318,0.059,34650.0,34649.0,1.92612375]
[1625324354625,0.059,34650.0,34649.0,0.74166803]
[1625324355077,0.059,34650.0,34649.0,1.92572876]
[1625324355879,0.059,34650.0,34649.0,0.74166803]
[1625324358133,0.059,34650.0,34649.0,1.75649664]
[1625324360941,0.059,34650.0,34649.0,2.94069188]
[1625324361893,0.059,34650.0,34649.0,1.75649664]
[1625324362795,0.059,34650.0,34649.0,2.94144625]
[1625324366405,0.059,34650.0,34649.0,2.9448665]
[1625324372366,0.059,34650.0,34649.0,2.94144597]
[1625324374123,0.17016153,34652.0,34649.0,2.94144597]
[1625324374328,0.17016153,34652.0,34649.0,3.00044597]
[1625324374423,0.17016153,34652.0,34651.0,0.24057544]
[1625324374522,0.17022133,34654.0,34651.0,0.29957544]
[1625324374627,0.17022133,34654.0,34651.0,0.35857544]
[1625324374772,0.17022133,34654.0,34652.0,0.00342001]
[1625324374875,0.17022133,34654.0,34652.0,0.12142001]
[1625324375073,0.25021023,34656.0,34653.0,2.87481506]
[1625324375173,0.25021023,34656.0,34653.0,2.93381506]
[1625324375524,0.25021023,34656.0,34654.0,0.00341989]
[1625324375624,0.25021023,34656.0,34654.0,0.30591989]
[1625324375724,0.08,34656.0,34655.0,2.87355832]
[1625324375827,0.08,34656.0,34655.0,2.93255832]
[1625324376027,0.09709938,34656.0,34655.0,2.93597821]
[1625324376277,0.08,34656.0,34655.0,2.93597821]
[1625324376378,0.08,34656.0,34655.0,3.41712909]
[1625324378834,0.08,34656.0,34655.0,4.76921582]
[1625324379382,0.08,34656.0,34655.0,3.41712909]
[1625324379732,0.08,34656.0,34655.0,4.76919415]
[1625324380336,0.08,34656.0,34655.0,3.41712909]
[1625324380887,0.08,34656.0,34655.0,4.77030704]
[1625324382692,0.25044433,34656.0,34655.0,4.77030704]
[1625324383942,0.08,34656.0,34655.0,4.77030704]
[1625324384494,0.25054955,34656.0,34655.0,4.77030704]
[1625324387101,0.08,34656.0,34655.0,6.29636427]
[1625324388499,0.25067927,34656.0,34655.0,6.35536427]
[1625324388598,0.25067927,34656.0,34655.0,6.44086427]
[1625324388700,0.25067927,34656.0,34655.0,6.38186427]
[1625324388899,0.25067927,34656.0,34655.0,6.44086427]
[1625324389151,0.08,34656.0,34655.0,6.44086427]
[1625324389854,0.08,34656.0,34655.0,6.35536427]
[1625324392207,0.25069408,34656.0,34655.0,6.35536427]
[1625324393411,0.08,34656.0,34655.0,4.82930704]
[1625324401328,0.31303,34656.0,34655.0,4.77030704]
[1625324401578,0.37203,34656.0,34655.0,4.76688715]
[1625324401778,0.37203,34656.0,34655.0,4.77030705]
[1625324401930,1.05420432,34656.0,34655.0,4.77030705]
[1625324402730,2.07740513,34656.0,34655.0,4.77030705]
[1625324403831,2.09450488,34656.0,34655.0,4.77030705]